bitfinex/quotes_ETHUSD_20250605
["timestamp","ask_amount","ask_price","bid_price","bid_amount"]
[1749165588471,0.38320646,2425.1,2425.0,20.12371134]
[1749165588836,7.40920646,2425.1,2425.0,20.12371134]
[1749165589370,0.38320646,2425.1,2425.0,20.74201134]
[1749165589751,7.41020646,2425.1,2425.0,28.22404436]
[1749165590138,0.38320646,2425.1,2425.0,28.22404436]
[1749165590466,7.41620646,2425.1,2425.0,28.22404436]
[1749165590672,0.38320646,2425.1,2425.0,28.22404436]
[1749165590964,7.41420646,2425.1,2425.0,28.22404436]
[1749165591181,0.38320646,2425.1,2425.0,28.22404436]
[1749165591385,7.41120646,2425.1,2425.0,28.22404436]
[1749165591546,7.41120646,2425.1,2425.0,20.74201134]
[1749165592135,7.41120646,2425.1,2425.0,4.74201134]
[1749165592567,7.41120646,2425.1,2425.0,20.74201134]
[1749165597605,7.39220646,2425.1,2425.0,20.74201134]
[1749165597992,0.38320646,2425.1,2425.0,20.74201134]
[1749165598199,7.39020646,2425.1,2425.0,20.74201134]
[1749165599465,7.38520646,2425.1,2425.0,20.74201134]
[1749165601893,0.38320646,2425.1,2425.0,20.74201134]
[1749165602096,7.37720646,2425.1,2425.0,20.74201134]
[1749165604122,0.38320646,2425.1,2425.0,28.22404436]
[1749165604433,7.9,2426.0,2425.9,20.12218145]
[1749165604582,0.7666,2426.4,2426.3,4.12150187]
[1749165604919,8.743097,2426.4,2426.3,4.12150187]
[1749165605725,0.984497,2426.4,2426.3,20.12150187]
[1749165605892,7.972497,2426.4,2426.3,20.12150187]
[1749165606929,11.247797,2426.4,2426.3,20.12150187]
[1749165607424,12.96879585,2426.4,2426.1,4.12173568]
[1749165607582,9.95203302,2426.2,2425.4,4.12303125]
[1749165607781,7.9,2426.2,2426.1,4.12184163]
[1749165608092,11.1242,2426.3,2426.2,4.12167175]
[1749165608392,14.3070862,2426.3,2426.2,4.12167175]
[1749165608916,22.53120875,2426.3,2426.2,4.12167175]
[1749165609086,22.7621371,2426.3,2426.2,4.12167175]
[1749165609281,21.53601249,2426.3,2426.2,4.12167175]
[1749165609483,21.53601167,2426.3,2426.2,4.12167175]
[1749165610015,22.76213422,2426.3,2426.2,4.12167175]
[1749165610216,3.2503,2426.1,2425.8,4.12222944]
[1749165610512,10.44549206,2426.0,2425.9,4.12215623]
[1749165610718,7.97549206,2426.0,2425.9,4.12215623]
[1749165612139,7.97549206,2426.0,2425.9,20.12215623]
[1749165612323,0.98449206,2426.0,2425.9,20.12215623]
[1749165612535,0.758,2426.4,2426.3,4.12150187]
[1749165612725,18.04222561,2426.4,2426.2,4.12159143]
[1749165612902,0.98525452,2426.3,2426.2,4.12159143]
[1749165613105,3.6861704,2426.3,2426.2,4.12159143]
[1749165613326,4.91716038,2426.3,2426.2,4.12159143]
[1749165613631,3.45525452,2426.3,2426.2,4.12159143]
[1749165613939,5.71434731,2426.3,2426.2,4.12159143]
[1749165614239,6.71437535,2426.3,2426.2,4.12159143]
[1749165614935,6.94540251,2426.3,2426.2,4.12159143]
[1749165615241,6.94539912,2426.3,2426.2,4.12159143]
[1749165615434,6.94538522,2426.3,2426.2,4.12159143]
[1749165615735,4.24437535,2426.3,2426.2,4.12159143]
[1749165615922,7.96725452,2426.3,2426.2,4.12159143]
[1749165616127,11.6682445,2426.3,2426.2,4.12159143]
[1749165616340,11.6682445,2426.3,2426.1,4.12175615]
[1749165616536,1.60134171,2426.2,2426.1,4.12175615]
[1749165616737,1.37030814,2426.2,2426.1,4.12175615]
[1749165617131,1.370285,2426.2,2426.1,4.12175615]
[1749165617330,0.98525452,2426.2,2426.1,4.12175615]
[1749165617507,3.2257,2426.1,2425.9,4.12208867]
[1749165617707,8.34925855,2426.0,2425.9,20.12208867]
[1749165617904,8.34926095,2426.0,2425.9,20.12208867]
[1749165618243,8.34925267,2426.0,2425.9,20.12208867]
[1749165618745,10.81925267,2426.0,2425.3,0.6183]
[1749165618967,5.07125949,2425.9,2425.8,4.12225758]
[1749165619140,3.45525452,2425.9,2425.8,4.12225758]
[1749165619341,4.68727306,2425.9,2425.8,4.12225758]
[1749165619543,4.91827931,2425.9,2425.8,4.12225758]
[1749165619758,2.67939109,2425.9,2425.8,4.12225758]
[1749165619961,8.19226077,2425.9,2425.8,4.12225758]
[1749165620268,8.80865987,2425.9,2425.8,4.12225758]
[1749165620630,12.5106854,2425.9,2425.7,4.1224129]
[1749165620831,12.5106854,2425.9,2424.6,0.6183]
[1749165620832,2.47,2425.6,2424.6,0.6183]
[1749165621032,2.47,2425.2,2425.1,4.12350552]
[1749165621267,11.67373186,2425.2,2425.1,4.12350552]
[1749165621469,10.67233582,2425.2,2425.1,4.12350552]
[1749165621781,12.05822884,2425.2,2425.1,4.12350552]
[1749165621932,2.60222884,2425.2,2425.1,20.12350552]
[1749165622129,2.60222884,2425.2,2425.1,20.74180552]
[1749165622130,1.37039372,2425.2,2425.1,20.74180552]
[1749165622368,1.23183512,2425.8,2425.7,4.12252133]
[1749165622582,7.97364541,2425.8,2425.7,4.12252133]
[1749165622781,2.21748053,2425.8,2425.7,4.12252133]
[1749165622983,9.20471492,2425.8,2425.7,4.12252133]
[1749165623182,7.97264541,2425.8,2425.7,4.12252133]
[1749165623479,11.67471492,2425.8,2425.7,4.12252133]
[1749165623651,12.05946766,2425.8,2425.7,4.12252133]
[1749165623978,12.05946766,2425.8,2425.6,4.12259986]
[1749165623979,12.51186922,2425.8,2425.6,4.12259986]
[1749165624176,5.07237532,2425.7,2425.6,20.12259986]
[1749165624380,3.84037249,2425.7,2425.6,20.12259986]
[1749165624568,3.84041233,2425.7,2425.6,20.12259986]
[1749165624877,3.45564541,2425.7,2425.6,20.12259986]
[1749165625077,3.8404175,2425.7,2425.6,20.12259986]
[1749165625646,3.45564541,2425.7,2425.6,20.12259986]
[1749165625847,7.25426771,2425.7,2425.6,4.12259986]
[1749165626070,7.25425442,2425.7,2425.6,4.12259986]
[1749165626270,5.63746422,2425.7,2425.6,4.12259986]
[1749165626793,6.0222397,2425.7,2425.6,4.12259986]
[1749165627004,6.02220044,2425.7,2425.6,4.12259986]
[1749165627155,7.00674229,2425.7,2425.4,4.12294551]
[1749165627350,2.47,2425.5,2425.4,20.12294551]
[1749165627658,10.82236154,2425.5,2425.4,20.12294551]
[1749165627987,11.66963373,2425.5,2425.4,4.12303125]
[1749165628577,12.05427347,2425.5,2425.4,4.12303125]
[1749165628889,5.07227347,2425.5,2425.4,4.12303125]
[1749165629092,10.82228515,2425.5,2425.4,4.12303125]
[1749165629452,10.8221982,2425.5,2425.4,4.12303125]
[1749165629649,10.43764541,2425.5,2425.4,4.12303125]
[1749165629888,3.45564541,2425.5,2425.4,4.12303125]
[1749165630186,7.97064541,2425.5,2425.4,20.12303125]
[1749165630348,6.985,2425.5,2425.4,20.12303125]
[1749165630552,2.21669457,2425.9,2425.8,4.12235138]
[1749165630777,11.1729817,2425.9,2425.8,4.12235138]
[1749165630958,12.41099338,2425.9,2425.8,4.12235138]
[1749165631171,14.05428232,2425.9,2425.7,4.12244511]
[1749165631484,4.68673059,2425.8,2425.7,4.12244511]
[1749165631867,5.0713862,2425.8,2425.7,4.12244511]
[1749165632075,6.02661764,2425.8,2425.7,4.12244511]
[1749165632383,6.0265909,2425.8,2425.7,4.12252133]
[1749165632757,6.02659114,2425.8,2425.7,4.12252133]
[1749165632959,12.58670385,2425.8,2425.7,4.12252133]
[1749165633353,11.35520171,2425.8,2425.7,4.12252133]
[1749165633577,19.95336825,2425.8,2425.7,4.12252133]
[1749165633834,19.95336609,2425.8,2425.7,4.12252133]
[1749165634401,20.18412215,2425.8,2425.7,4.12252133]
[1749165634569,22.88874949,2425.8,2425.6,4.12254689]
[1749165634770,2.47,2425.6,2425.5,20.12286126]
[1749165635089,3.83983672,2425.6,2425.5,20.12286126]
[1749165635263,3.2852,2425.5,2425.4,4.12303125]
[1749165635613,12.47890385,2425.5,2425.4,4.12303125]
[1749165635758,12.86349138,2425.5,2425.4,4.12303125]
[1749165635957,12.04829138,2425.5,2425.4,4.12303125]
[1749165636178,8.34478924,2425.5,2425.4,4.12303125]
[1749165636377,8.3449676,2425.5,2425.4,4.12303125]
[1749165636657,7.96020171,2425.5,2425.4,4.12303125]
[1749165636990,8.34498276,2425.5,2425.4,4.12303125]
[1749165637189,8.3449944,2425.5,2425.4,4.12303125]
[1749165637487,1.36998015,2425.5,2425.4,4.12303125]
[1749165637692,8.34298015,2425.5,2425.4,20.12303125]
[1749165637893,8.34300814,2425.5,2425.4,20.12303125]
[1749165638261,10.81311049,2425.5,2425.4,20.12303125]
[1749165638460,10.81310592,2425.5,2425.4,20.12303125]
[1749165638679,10.81310474,2425.5,2425.4,20.12303125]
[1749165638873,10.42820171,2425.5,2425.4,20.12303125]
[1749165639085,10.81309876,2425.5,2425.4,20.12303125]
[1749165639398,10.81309597,2425.5,2425.4,20.12303125]
[1749165639892,1.37009597,2425.5,2425.4,20.12303125]
[1749165640101,8.34409597,2425.5,2425.4,20.12303125]
[1749165640265,8.34418681,2425.5,2425.4,20.12303125]
[1749165640460,7.95920171,2425.5,2425.4,20.12303125]
[1749165640873,10.42920171,2425.5,2425.4,20.12303125]
[1749165641314,10.81411992,2425.5,2425.4,20.12303125]
[1749165641790,1.37011992,2425.5,2425.4,20.12303125]
[1749165641990,8.33911003,2425.5,2425.4,20.12303125]
[1749165642192,8.33911212,2425.5,2425.4,20.12303125]
[1749165642392,7.95420171,2425.5,2425.4,20.12303125]
[1749165643194,8.33917763,2425.5,2425.4,20.12303125]
[1749165643667,10.80917763,2425.5,2425.4,20.12303125]
[1749165644066,10.42420171,2425.5,2425.4,20.12303125]
[1749165644672,10.80934954,2425.5,2425.4,20.12303125]
[1749165644996,8.33039894,2425.5,2425.4,20.12303125]
[1749165645610,8.3305018,2425.5,2425.4,20.12303125]
[1749165645813,7.94520171,2425.5,2425.4,20.12303125]
[1749165645980,8.33050161,2425.5,2425.4,20.12303125]
[1749165646175,7.94520171,2425.5,2425.4,20.12303125]
[1749165646801,8.33080156,2425.5,2425.4,20.12303125]
[1749165647003,8.33080295,2425.5,2425.4,20.12303125]
[1749165647410,8.33081631,2425.5,2425.4,20.12303125]
[1749165647615,8.33082105,2425.5,2425.4,20.12303125]
[1749165647812,7.94520171,2425.5,2425.4,20.12303125]
[1749165648588,8.33094008,2425.5,2425.4,20.12303125]
[1749165649616,7.94520171,2425.5,2425.4,20.12303125]
[1749165650333,0.98520171,2425.5,2425.4,20.12303125]
[1749165650541,8.34095159,2425.5,2425.4,20.12303125]
[1749165650844,1.37095159,2425.5,2425.4,20.12303125]
[1749165650990,1.37095159,2425.5,2425.4,28.22336427]
[1749165651191,1.87430938,2425.9,2425.8,20.12235138]
[1749165651192,0.23100625,2425.9,2425.8,20.12235138]
[1749165651429,8.20806071,2425.9,2425.8,20.12235138]
[1749165651609,8.20786283,2425.9,2425.8,20.12235138]
[1749165652590,7.22000625,2425.9,2425.8,20.12235138]
[1749165653293,10.67748211,2425.9,2425.8,20.12235138]
[1749165653623,14.31641274,2425.9,2425.8,4.12235138]
[1749165653830,13.31624671,2425.9,2425.2,4.12337126]
[1749165654118,13.31624671,2425.9,2425.6,4.1225638]
[1749165654119,4.11530823,2425.7,2425.6,4.1225638]
[1749165654325,2.47,2425.5,2424.9,0.6183]
[1749165654533,1.42190467,2425.9,2425.7,4.12252133]
[1749165654534,0.23100625,2425.9,2425.7,4.12252133]
[1749165654692,0.23100625,2425.9,2425.8,20.12235138]
[1749165654885,7.26500625,2425.9,2425.8,20.12235138]
[1749165655194,7.26500625,2425.9,2425.8,20.74065138]
[1749165655500,0.23100625,2425.9,2425.8,20.74065138]
[1749165655824,7.26200625,2425.9,2425.8,20.74065138]
[1749165658732,0.23100625,2425.9,2425.8,20.74065138]
[1749165658934,7.25400625,2425.9,2425.8,20.74065138]
[1749165659231,0.23100625,2425.9,2425.8,20.74065138]
[1749165659597,7.25500625,2425.9,2425.8,20.74065138]
[1749165660014,7.25700625,2425.9,2425.8,28.2226844]
[1749165660213,7.25700625,2425.9,2425.8,20.74065138]
[1749165661518,0.23100625,2425.9,2425.8,20.74065138]
[1749165661719,7.25100625,2425.9,2425.8,20.74065138]
[1749165662799,0.23100625,2425.9,2425.8,20.74065138]
[1749165663028,7.24500625,2425.9,2425.8,20.74065138]
[1749165663221,0.23100625,2425.9,2425.8,28.7726844]
[1749165663564,0.7732,2427.3,2426.4,0.6183]
[1749165663876,8.77915096,2427.2,2427.1,4.12014338]
[1749165664129,17.27203302,2427.6,2427.2,4.11988932]
[1749165664130,0.98405938,2427.4,2427.2,4.11988932]
[1749165664333,0.98295954,2427.6,2427.5,20.11946446]
[1749165664516,7.042,2427.6,2427.5,20.11946446]
[1749165665325,0.98282793,2427.7,2427.6,4.11929477]
[1749165665523,0.7732,2427.8,2427.7,4.11912509]
[1749165665695,8.20256694,2427.8,2427.7,4.11912509]
[1749165665901,9.12110804,2427.8,2427.7,4.11912509]
[1749165666236,2.47,2427.7,2426.0,0.6183]
[1749165666531,0.7732,2427.4,2427.2,4.11983869]
[1749165666731,0.7732,2427.4,2427.0,16.0]
[1749165666732,0.7732,2427.4,2427.3,4.11980389]
[1749165666934,9.22435356,2427.4,2427.3,4.11980389]
[1749165667500,9.22135356,2427.4,2427.2,4.11990668]
[1749165667717,0.7732,2427.3,2427.0,4.1201828]
[1749165667916,0.92213536,2427.2,2427.1,4.12014338]
[1749165668923,7.97713536,2427.2,2427.0,20.12025589]
[1749165669117,0.7732,2427.1,2427.0,20.12025589]
[1749165669348,1.64823354,2427.1,2427.0,20.12025589]
[1749165669542,0.7732,2427.3,2427.2,4.11997363]
[1749165669931,1.36619644,2427.7,2427.6,4.11929477]
[1749165670133,2.28473593,2427.8,2427.7,4.11912509]
[1749165670426,8.6732,2427.9,2427.8,20.11895543]
[1749165670757,15.7342,2427.9,2427.8,20.11895543]
[1749165670958,8.6732,2427.9,2427.8,20.11895543]
[1749165671159,14.959,2427.9,2427.8,20.11895543]
[1749165671390,1.89,2428.2,2428.1,20.11844652]
[1749165671663,9.21832,2428.2,2428.1,20.11844652]
[1749165671819,7.32832,2428.2,2428.1,20.11844652]
[1749165672250,0.26632,2428.2,2428.1,20.11844652]
[1749165672436,0.7732,2428.3,2428.2,20.11827691]
[1749165672651,8.909,2428.7,2428.6,4.11759861]
[1749165672847,15.965,2428.7,2428.6,4.11759861]
[1749165673065,7.056,2428.7,2428.6,4.11759861]
[1749165673282,2.5139559,2428.7,2428.6,4.11759861]
[1749165673563,8.7957559,2428.7,2428.6,4.11759861]
[1749165673743,0.7732,2429.0,2428.9,4.11709004]
[1749165673943,0.7732,2429.0,2428.8,4.11719371]
[1749165673944,7.8282,2429.0,2428.8,4.11719371]
[1749165674260,0.78282,2428.9,2428.8,4.11719371]
[1749165674446,7.83482,2428.9,2428.8,4.11719371]
[1749165675144,7.83182,2428.9,2428.8,4.11719371]
[1749165676358,0.7873,2428.7,2428.3,4.11809668]
[1749165676577,7.48203302,2428.4,2428.3,4.11809668]
[1749165676797,15.28723632,2428.4,2428.3,4.11809668]
[1749165676996,7.057,2428.4,2428.3,20.11809668]
[1749165679312,0.775,2428.3,2428.0,4.11850812]
[1749165679606,0.775,2428.3,2428.1,16.0]
[1749165679809,0.775,2428.3,2428.2,4.11827691]
[1749165679954,0.97652831,2428.7,2428.5,4.11776816]
[1749165680150,11.18569341,2428.8,2428.5,4.11776816]
[1749165680151,8.18056934,2428.6,2428.5,4.11776816]
[1749165680987,8.17856934,2428.6,2428.5,4.11776816]
[1749165681567,8.17856934,2428.6,2427.1,0.6183]
[1749165681568,9.53186934,2428.6,2427.1,0.6183]
[1749165681771,8.28533302,2428.3,2427.2,4.11997363]
[1749165682090,8.28533302,2428.3,2427.1,0.6183]
[1749165682091,7.075,2428.2,2428.0,4.11846397]
[1749165682257,7.9035333,2428.2,2428.1,4.11844652]
[1749165682796,7.9035333,2428.2,2427.9,4.11868178]
[1749165682797,8.88006161,2428.2,2427.9,4.11868178]
[1749165682965,2.89139,2428.1,2427.9,4.11868178]
[1749165683166,2.89139,2428.1,2428.0,4.11861614]
[1749165683593,2.89139,2428.1,2427.9,4.11872844]
[1749165683894,0.97652831,2428.0,2427.9,4.11872844]
[1749165684061,0.97652831,2428.0,2427.9,4.11872577]
[1749165684459,1.91486169,2428.1,2428.0,4.11861614]
[1749165684787,2.89400781,2428.1,2428.0,4.11861614]
[1749165684994,9.96100781,2428.1,2428.0,4.11861614]
[1749165685762,9.96100781,2428.1,2427.8,4.11891678]
[1749165686105,9.96100781,2428.1,2427.4,4.1194952]
[1749165686106,2.18016627,2428.0,2427.9,4.11866066]
[1749165687279,0.38266633,2428.3,2427.9,20.11869235]
[1749165687496,1.97206039,2428.6,2428.5,4.11776816]
[1749165687713,8.0402191,2428.6,2428.5,20.11776816]
[1749165688011,2.35465219,2429.0,2428.9,4.11709004]
[1749165688315,1.7024316,2429.0,2428.9,20.11709004]
[1749165688468,0.98016499,2429.0,2428.9,20.11709004]
[1749165688669,1.22066039,2429.6,2429.2,4.11658159]
[1749165688879,1.22066039,2429.8,2429.7,20.11573445]
[1749165689088,8.04899984,2429.8,2429.7,20.11573445]
[1749165689399,1.22066039,2430.3,2430.2,20.11488766]
[1749165689601,1.22066039,2430.5,2430.4,20.11454904]
[1749165689771,8.04688846,2430.5,2430.4,20.11454904]
[1749165690498,7.068,2430.5,2430.4,20.11454904]
[1749165690900,1.22066039,2430.9,2430.8,4.11387197]
[1749165691092,9.8220379,2430.9,2430.8,4.11387197]
[1749165691293,10.20487295,2430.9,2430.8,4.11387197]
[1749165691495,8.98421095,2430.9,2430.8,3.46891399]
[1749165691695,9.8220379,2430.9,2430.8,3.46891399]
[1749165691897,2.7580379,2430.9,2430.8,3.46891399]
[1749165692200,11.07137751,2430.9,2430.1,16.0]
[1749165692507,1.22040583,2430.7,2430.5,4.11429703]
[1749165692801,1.3600882,2430.6,2430.5,4.11429703]
[1749165693102,0.97722635,2430.6,2430.5,4.11429703]
[1749165693411,8.03322635,2430.6,2430.5,4.11437975]
[1749165693622,10.53684693,2430.6,2430.2,4.11478859]
[1749165693777,0.97722635,2430.5,2430.3,16.0]
[1749165694101,0.97722635,2430.4,2430.3,20.11471834]
[1749165696821,0.97722635,2430.4,2430.3,4.11471834]
[1749165697122,1.35871016,2430.4,2430.2,4.11486839]
[1749165697324,8.5803566,2430.5,2430.2,4.11486839]
[1749165697325,9.01413303,2430.3,2430.2,4.11486839]
[1749165698125,9.01413303,2430.3,2430.2,4.11488766]
[1749165698413,10.61528204,2430.3,2430.2,4.11488766]
[1749165698614,10.23453886,2430.3,2430.2,4.11488766]
[1749165698815,9.77607298,2430.3,2430.2,4.11488766]
[1749165699021,8.40140724,2430.3,2430.2,4.11488766]
[1749165699222,8.02022635,2430.3,2430.2,4.11488766]
[1749165699373,10.00299374,2430.3,2430.2,4.11488766]
[1749165699575,9.62181331,2430.3,2430.2,4.11488766]
[1749165699913,9.62181261,2430.3,2430.2,4.11488766]
[1749165700087,9.62182104,2430.3,2430.2,4.11488766]
[1749165700282,10.00278808,2430.3,2430.2,4.11488766]
[1749165700489,10.48837611,2430.3,2430.2,4.11488766]
[1749165700683,9.64904457,2430.3,2430.2,4.11488766]
[1749165700883,10.030119,2430.3,2430.2,4.11488766]
[1749165701088,9.26797028,2430.3,2430.2,4.11488766]
[1749165701319,9.6490397,2430.3,2430.2,4.11488766]
[1749165701535,9.64903958,2430.3,2430.2,4.11488766]
[1749165701717,9.25097028,2430.3,2430.2,4.11488766]
[1749165707833,10.47137611,2430.3,2429.9,4.11536337]
[1749165708135,2.44315938,2430.2,2430.1,4.11505699]
[1749165708290,2.44309756,2430.2,2430.1,4.11505699]
[1749165708494,2.4430971,2430.2,2430.1,4.11505699]
[1749165708729,2.0624329,2430.2,2430.1,4.11505699]
[1749165709300,3.28283873,2430.2,2430.1,4.11505699]
[1749165709512,2.0624329,2430.2,2430.1,4.11505699]
[1749165709825,2.44309512,2430.2,2430.1,4.11505699]
[1749165709998,2.82398768,2430.2,2430.1,4.11505699]
[1749165710343,4.04462417,2430.2,2430.1,4.11505699]
[1749165710829,2.82421946,2430.2,2430.1,4.11505699]
[1749165711030,2.0624329,2430.2,2430.1,4.11505699]
[1749165711403,3.28303608,2430.2,2430.1,4.11505699]
[1749165711636,10.65692902,2430.2,2430.1,4.11505699]
[1749165711934,10.65692902,2430.2,2430.0,4.11520383]
[1749165711935,11.03802558,2430.2,2430.0,4.11507015]
[1749165712119,0.7694,2430.0,2429.5,16.0]
[1749165712321,7.96822635,2429.9,2429.8,20.11543643]
[1749165712495,8.349754,2429.9,2429.8,20.11543643]
[1749165712693,7.96822635,2429.9,2429.8,20.11543643]
[1749165714305,11.91255213,2429.9,2429.8,20.11543643]
[1749165714634,11.07462754,2429.9,2429.8,20.11543643]
[1749165714840,11.07463014,2429.9,2429.8,20.11543643]
[1749165715137,11.07466074,2429.9,2429.8,4.11543643]
[1749165715345,11.45736897,2429.9,2429.8,4.11543643]
[1749165715562,1.74264637,2429.9,2429.8,20.73373643]
[1749165715841,9.12597443,2430.6,2430.3,4.11471834]
[1749165716013,7.97056923,2430.5,2430.4,4.11454904]
[1749165716356,9.42765787,2430.5,2430.4,4.11454904]
[1749165716501,9.81284827,2430.5,2430.4,4.11454904]
[1749165716703,2.20654366,2430.5,2430.4,4.11454904]
[1749165717021,1.75092421,2430.5,2430.4,20.73284904]
[1749165717214,8.73888113,2430.5,2430.4,20.73284904]
[1749165717414,8.35372518,2430.5,2430.4,20.73284904]
[1749165717732,7.96756923,2430.5,2430.4,20.73284904]
[1749165718031,8.35271736,2430.5,2430.4,20.73284904]
[1749165718231,8.35216986,2430.5,2430.4,20.73284904]
[1749165718432,7.96756923,2430.5,2430.4,20.73284904]
[1749165718737,8.35216174,2430.5,2430.4,20.73284904]
[1749165718916,8.35216253,2430.5,2430.4,20.73284904]
[1749165719127,7.96756923,2430.5,2430.4,20.73284904]
[1749165721452,0.98056923,2430.5,2430.4,22.64284904]
[1749165721637,1.22597443,2431.0,2430.9,20.11370274]
[1749165721813,7.95792454,2431.0,2430.9,20.11370274]
[1749165722021,8.34211451,2431.0,2430.9,20.11370274]
[1749165722344,8.34011451,2431.0,2430.9,20.11370274]
[1749165722541,7.95592454,2431.0,2430.9,20.11370274]
[1749165722715,8.33971031,2431.0,2430.9,20.11370274]
[1749165723037,19.85049644,2431.0,2430.1,0.6183]
[1749165723218,2.45729434,2430.6,2430.5,4.11421357]
[1749165723418,11.87412013,2430.6,2429.8,4.73378319]
[1749165723613,2.474,2430.4,2430.3,4.11459722]
[1749165723852,11.20768849,2430.4,2430.3,4.11459722]
[1749165724274,13.0768056,2430.4,2430.3,4.11459722]
[1749165724576,13.07689226,2430.4,2430.3,4.11459722]
[1749165724778,13.0769405,2430.4,2430.3,4.11459722]
[1749165724975,14.53687707,2430.4,2430.1,4.11500628]
[1749165725148,2.474,2430.2,2430.0,4.1151083]
[1749165725469,11.53193689,2430.1,2430.0,4.1151083]
[1749165725673,11.91595781,2430.1,2430.0,4.1151083]
[1749165725885,11.91599217,2430.1,2430.0,4.1151083]
[1749165726041,13.55494472,2430.1,2430.0,4.1151083]
[1749165726237,13.55496646,2430.1,2430.0,4.1151083]
[1749165726441,13.17091741,2430.1,2430.0,4.1151083]
[1749165726639,13.55496888,2430.1,2430.0,4.1151083]
[1749165726873,13.55496686,2430.1,2430.0,4.1151083]
[1749165727173,13.17091987,2430.1,2430.0,4.1151083]
[1749165727373,13.55498025,2430.1,2430.0,4.1151083]
[1749165727545,11.9160281,2430.1,2430.0,4.1151083]
[1749165727945,11.91599136,2430.1,2430.0,4.1151083]
[1749165728279,12.13614062,2430.1,2430.0,4.1151083]
[1749165728580,11.52145431,2430.1,2430.0,4.1151083]
[1749165728755,11.90545575,2430.1,2430.0,4.1151083]
[1749165729073,11.90546583,2430.1,2429.9,4.1152946]
[1749165729376,2.96552653,2430.0,2429.9,4.11539569]
[1749165729578,4.19447271,2430.0,2429.9,4.11539569]
[1749165729745,4.19447176,2430.0,2429.9,4.11539569]
[1749165730065,3.81039102,2430.0,2429.9,4.11539569]
[1749165730253,3.81039283,2430.0,2429.9,4.11539569]
[1749165730450,3.42645638,2430.0,2429.9,4.11539569]
[1749165730856,3.81039152,2430.0,2429.9,4.11539569]
[1749165731056,4.19432574,2430.0,2429.9,4.11539569]
[1749165731475,2.96537956,2430.0,2429.9,4.11539569]
[1749165731890,2.96529603,2430.0,2429.9,4.11539569]
[1749165732076,3.81031003,2430.0,2429.9,4.11539569]
[1749165732289,3.42645638,2430.0,2429.8,4.11548059]
[1749165732485,7.94892454,2429.9,2429.8,20.11548059]
[1749165732660,8.716662,2429.9,2429.8,20.11548059]
[1749165733092,8.71667113,2429.9,2429.8,20.11548059]
[1749165733389,1.75167144,2429.9,2429.8,20.11548059]
[1749165733582,8.32780297,2429.9,2429.8,20.11548059]
[1749165733776,7.94392454,2429.9,2429.8,20.11548059]
[1749165734289,8.32769893,2429.9,2429.8,20.11548059]
[1749165735057,8.32773418,2429.9,2429.8,20.11548059]
[1749165735257,7.94392454,2429.9,2429.8,20.11548059]
[1749165735470,8.32773402,2429.9,2429.8,20.11548059]
[1749165735666,8.32764884,2429.9,2429.8,20.11548059]
[1749165735880,0.98392454,2429.9,2429.8,20.11548059]
[1749165736079,1.22894618,2430.2,2430.0,20.11520214]
[1749165736266,0.38376148,2430.3,2430.2,20.11488766]
[1749165736579,8.32535142,2430.3,2430.2,20.11488766]
[1749165736985,8.32534585,2430.3,2430.2,20.11488766]
[1749165737187,8.32534565,2430.3,2430.2,20.11488766]
[1749165737373,8.32532658,2430.3,2430.2,20.11488766]
[1749165737578,0.9825902,2430.3,2430.2,20.73318766]
[1749165737884,0.9825902,2430.3,2428.3,4.11805257]
[1749165737885,3.2446,2429.8,2428.3,4.11805257]
[1749165738065,6.51341062,2429.5,2428.8,0.6183]
[1749165738261,9.5801866,2429.4,2429.1,4.11664238]
[1749165738559,1.75052439,2429.3,2429.1,4.11667158]
[1749165738790,7.96751857,2429.2,2429.1,4.11667158]
[1749165738996,1.36652766,2429.2,2429.1,4.11667158]
[1749165739215,1.22868934,2430.3,2429.9,0.6183]
[1749165739516,1.22868934,2430.3,2430.0,16.0]
[1749165739517,7.42285708,2430.2,2430.0,16.0]
[1749165739806,7.039,2430.2,2430.0,4.11518501]
[1749165740015,7.039,2430.2,2430.1,4.11505699]
[1749165740385,7.039,2430.2,2429.5,20.11593043]
[1749165740588,7.039,2430.2,2429.9,4.11537544]
[1749165740589,0.38389203,2430.1,2429.9,4.11537544]
[1749165740789,1.22868934,2430.2,2430.0,4.11522633]
[1749165740985,7.038,2430.1,2430.0,4.11522633]
[1749165741315,7.038,2430.1,2429.9,16.0]
[1749165741316,0.38384503,2430.3,2430.2,16.0]
[1749165741509,0.38384503,2430.3,2430.2,20.11488766]
[1749165741710,8.21494027,2430.4,2430.3,4.11471834]
[1749165742009,15.63773169,2430.4,2430.3,4.11471834]
[1749165742174,15.92062992,2430.4,2430.2,20.1148465]
[1749165742708,0.38381192,2430.3,2429.6,0.6183]
[1749165742909,0.38381454,2430.3,2430.1,16.0]
[1749165743218,0.38381454,2430.3,2430.1,4.11505699]
[1749165743398,2.40746566,2430.3,2429.9,4.11534818]
[1749165743578,2.02365112,2430.3,2430.0,4.11518823]
[1749165743778,2.40750349,2430.3,2430.0,20.11518823]
[1749165744082,2.40749743,2430.3,2430.1,4.11495662]
[1749165744289,2.02365112,2430.3,2430.1,4.11495662]
[1749165744502,2.40749683,2430.3,2430.0,20.11514547]
[1749165744711,2.21665839,2430.2,2430.0,4.11514547]
[1749165744913,7.029,2430.1,2430.0,4.11514547]
[1749165745087,7.029,2430.1,2429.3,4.11641213]
[1749165745088,0.7681,2430.0,2429.3,4.11641213]
[1749165745410,7.44434027,2429.8,2429.7,16.0]
[1749165745616,14.47234027,2429.8,2429.5,4.11599229]
[1749165745984,24.84634027,2429.8,2429.1,0.6183]
[1749165746201,24.84634027,2429.8,2428.8,4.11713336]
[1749165746202,7.44434027,2429.5,2428.8,4.11720273]
[1749165746410,7.031,2429.4,2429.2,4.11643302]
[1749165747399,7.031,2429.4,2429.3,4.11641213]
[1749165747622,7.41463314,2429.4,2429.3,4.11641213]
[1749165747786,7.031,2429.4,2429.2,4.11650548]
[1749165747987,7.41473808,2429.4,2429.3,4.11641213]
[1749165748230,7.026,2429.4,2429.3,4.11641213]
[1749165748531,9.5,2429.4,2429.3,4.11641213]
[1749165749401,9.88378812,2429.4,2429.3,4.11641213]
[1749165749791,9.88378965,2429.4,2429.3,4.11641213]
[1749165749993,9.88378875,2429.4,2429.3,4.11641213]
[1749165750232,9.5,2429.4,2429.3,4.11641213]
[1749165750525,3.2421,2429.2,2428.4,0.6183]
[1749165750731,7.44434027,2428.8,2428.1,4.11844652]
[1749165751024,8.00242945,2428.7,2428.6,4.11759354]
[1749165751201,7.02,2428.7,2428.6,4.11759354]
[1749165751382,7.02,2428.7,2428.6,20.11759354]
[1749165752015,7.02,2428.7,2428.6,4.11759354]
[1749165752416,7.40416362,2428.7,2428.6,20.11759354]
[1749165752636,11.14611987,2429.0,2428.9,4.11709004]
[1749165752796,18.29951333,2429.0,2428.9,4.11709004]
[1749165753141,18.91416373,2429.0,2428.9,4.11709004]
[1749165753312,16.44016257,2429.0,2428.8,4.11720357]
[1749165753503,1.36718289,2428.9,2428.8,4.11720357]